bitfinex-derivatives/quotes_SOLF0:USTF0_20241017
["timestamp","ask_amount","ask_price","bid_price","bid_amount"]
[1729134940802,4.66,154.38,154.34,8.98]
[1729134941004,3.2395,154.37,154.34,12.22]
[1729134941504,3.2395,154.37,154.35,3.30504252]
[1729134942701,8.98,154.36,154.31,1.3544]
[1729134942903,8.98,154.35,154.29,8.98]
[1729134943104,8.98,154.33,154.27,1.4167]
[1729134943303,3.2406,154.32,154.28,8.98]
[1729134943605,8.98,154.33,154.28,8.98]
[1729134946210,3.2409,154.31,154.28,8.98]
[1729134949822,3.2409,154.31,154.28,12.2213]
[1729134962330,4.66,154.32,154.3,3.2409]
[1729134962532,4.66,154.34,154.31,8.98]
[1729134962834,3.2403,154.33,154.31,12.2206]
[1729134963334,4.66,154.35,154.31,12.2206]
[1729134963531,3.2402,154.34,154.31,12.2206]
[1729134966630,3.2402,154.34,154.29,3.241]
[1729134966631,3.2405,154.32,154.29,3.241]
[1729134970239,7.9004,154.33,154.31,3.2406]
[1729134972338,3.2404,154.33,154.31,3.2406]
[1729134973834,4.66,154.34,154.28,1.3815]
[1729134974034,3.2407,154.31,154.28,1.3815]
[1729134974239,3.2407,154.31,154.28,10.3615]
[1729134974548,13.64,154.34,154.28,1.3815]
[1729134974549,3.2411,154.29,154.28,1.3815]
[1729134975645,8.98,154.32,154.28,1.3815]
[1729134975939,8.98,154.31,154.27,4.57887775]
[1729134976240,3.2411,154.3,154.26,12.2216]
[1729134976740,3.2411,154.3,154.27,3.16627332]
[1729134977235,8.98,154.31,154.27,3.16627332]
[1729134977438,3.2411,154.29,154.26,12.2216]
[1729134977940,3.2411,154.29,154.26,15.43682962]
[1729134978140,3.2414,154.28,154.26,3.21522962]
[1729134978351,8.98,154.29,154.25,8.98]
[1729134978638,3.2414,154.28,154.25,12.2218]
[1729134978942,3.2414,154.28,154.25,15.53645398]
[1729134979139,3.2417,154.26,154.25,3.31465398]
[1729134979336,3.2417,154.26,154.23,5.9476]
[1729134979738,3.2417,154.26,154.24,3.26147944]
[1729134982443,8.98,154.29,154.24,3.242]
[1729134983040,3.2415,154.27,154.25,3.27821365]
[1729134983240,3.2415,154.27,154.23,2.7053]
[1729134983436,3.2415,154.27,154.23,14.9276]
[1729134983642,3.2415,154.27,154.24,3.23702924]
[1729134984141,3.2418,154.26,154.24,3.23702924]
[1729134986140,4.66,154.3,154.24,3.23702924]
[1729134986141,8.98,154.28,154.24,3.23702924]
[1729134986349,3.2419,154.25,154.24,3.23702924]
[1729134987640,3.2419,154.25,154.23,2.7053]
[1729134988246,3.2419,154.25,154.23,6.01497607]
[1729134991252,3.2419,154.25,154.23,14.99497607]
[1729134992549,3.2415,154.28,154.25,3.2418]
[1729134994553,8.98,154.27,154.23,6.01497607]
[1729134994849,8.98,154.26,154.23,4.68577607]
[1729134995055,13.64,154.25,154.2,3.2429]
[1729134995643,3.2425,154.23,154.2,3.2429]
[1729134995851,13.64,154.25,154.2,8.98]
[1729134996151,13.64,154.25,154.21,3.2426]
[1729134996357,3.2423,154.24,154.22,3.21076202]
[1729134997355,3.2423,154.23,154.21,3.2426]
[1729134997952,3.2423,154.23,154.22,3.25227071]
[1729135004960,13.64,154.25,154.22,3.25227071]
[1729135005256,3.2422,154.24,154.22,3.25227071]
[1729135008765,4.66,154.25,154.2,8.98]
[1729135009562,3.2423,154.24,154.21,3.2426]
[1729135009763,3.2423,154.24,154.22,3.21270774]
[1729135016462,3.2423,154.24,154.22,6.45520774]
[1729135016765,3.2423,154.24,154.22,3.2425]
[1729135017067,4.66,154.25,154.22,3.18027276]
[1729135017268,7.9021,154.25,154.23,3.2423]
[1729135017765,4.66,154.25,154.23,3.2423]
[1729135023175,7.9018,154.26,154.23,3.2423]
[1729135028261,3.2415,154.27,154.24,3.242]
[1729135028466,7.9015,154.27,154.24,3.242]
[1729135029368,16.8815,154.27,154.24,3.242]
[1729135030873,3.2419,154.26,154.23,4.6729]
[1729135031467,3.2423,154.23,154.22,3.21302898]
[1729135031667,3.2423,154.23,154.2,12.2228]
[1729135031971,8.98,154.23,154.18,11.7666]
[1729135032177,8.98,154.23,154.19,3.2431]
[1729135032178,3.2428,154.22,154.19,3.2431]
[1729135032778,3.2429,154.21,154.18,15.0099]
[1729135034475,3.2429,154.21,154.18,6.0299]
[1729135037579,8.98,154.22,154.12,1.4583]
[1729135037773,8.98,154.2,154.15,8.98]
[1729135038178,8.98,154.2,154.13,5.98742422]
[1729135038179,3.2431,154.2,154.17,3.2435]
[1729135038869,3.2432,154.19,154.17,3.2435]
[1729135040786,4.66,154.23,154.17,3.2435]
[1729135041079,3.2431,154.2,154.17,3.2435]
[1729135041380,8.98,154.21,154.17,3.2435]
[1729135041889,3.243,154.2,154.17,3.2435]
[1729135042081,8.98,154.21,154.17,3.2435]
[1729135042882,3.243,154.2,154.17,3.2435]
[1729135043178,8.98,154.21,154.17,3.2435]
[1729135043381,3.2434,154.18,154.15,3.244]
[1729135043782,8.98,154.18,154.13,5.98742422]
[1729135043984,3.2439,154.16,154.14,3.2442]
[1729135044786,3.2437,154.17,154.14,3.2442]
[1729135045885,3.2437,154.17,154.14,12.2242]
[1729135048885,3.2435,154.18,154.15,3.2439]
[1729135049080,13.64,154.19,154.15,3.2439]
[1729135049584,3.2434,154.18,154.15,3.2439]
[1729135050578,13.64,154.19,154.14,8.98]
[1729135050777,3.2436,154.17,154.14,12.2241]
[1729135051791,3.2439,154.16,154.13,9.23172422]
[1729135051982,4.66,154.18,154.13,14.96742422]
[1729135052684,3.2437,154.17,154.14,3.2441]
[1729135053082,126.84182788,154.23,154.15,8.98]
[1729135053381,3.2433,154.19,154.16,3.2437]
[1729135057387,3.2421,154.25,154.18,8.98]
[1729135057601,7.9021,154.25,154.21,8.98]
[1729135057891,7.9021,154.25,154.22,3.16854051]
[1729135060393,7.9021,154.25,154.22,6.41104051]
[1729135068496,4.66,154.25,154.23,3.2422]
[1729135069299,8.98,154.24,154.19,1.4584]
[1729135070297,3.2427,154.22,154.19,4.7014]
[1729135070595,3.2427,154.22,154.19,10.4384]
[1729135071194,13.64,154.25,154.19,1.4584]
[1729135071402,3.2426,154.22,154.19,1.4584]
[1729135071901,3.2429,154.21,154.19,1.4584]
[1729135074695,3.2429,154.21,154.19,10.4384]
[1729135075797,3.2429,154.21,154.19,13.6816]
[1729135076996,13.64,154.25,154.19,10.4384]
[1729135076997,4.66,154.25,154.19,10.4384]
[1729135077300,3.2424,154.23,154.2,3.2428]
[1729135077497,4.66,154.25,154.2,3.2428]
[1729135078396,3.2426,154.22,154.2,3.2428]
[1729135079297,3.2423,154.24,154.21,3.2427]
[1729135079497,4.66,154.25,154.19,10.4384]
[1729135079901,3.2425,154.23,154.2,3.2429]
[1729135080301,146.20994724,154.36,154.21,8.98]
[1729135080599,8.98,154.26,154.21,3.2830681]
[1729135080801,8.98,154.24,154.21,3.2830681]
[1729135080997,8.98,154.24,154.2,1.3247]
[1729135081602,8.98,154.24,154.21,3.19873717]
[1729135082405,3.2425,154.23,154.21,3.19873717]
[1729135084908,3.2429,154.21,154.19,1.4584]
[1729135085807,3.2429,154.21,154.19,4.7016]
[1729135088911,8.98,154.23,154.19,4.7016]
[1729135089105,3.2426,154.22,154.19,4.7016]
[1729135092215,7.9026,154.22,154.19,4.7016]
[1729135093317,7.9026,154.22,154.19,13.6816]
[1729135095317,1.392,154.27,154.19,10.4384]
[1729135095518,3.2424,154.23,154.21,3.2428]
[1729135095819,7.9024,154.23,154.21,3.26252134]
[1729135099721,7.9024,154.23,154.2,12.2229]
[1729135100121,7.9024,154.23,154.21,3.27355286]
[1729135104727,7.9024,154.23,154.21,3.2427]
[1729135104929,7.9024,154.23,154.21,6.48846804]
[1729135105727,7.9024,154.23,154.21,3.24576804]
[1729135105935,12.2228,154.22,154.19,4.7015]
[1729135106133,3.2428,154.22,154.19,4.7015]
[1729135110136,4.66,154.23,154.19,10.4384]
[1729135110341,3.2426,154.22,154.19,13.6815]
[1729135110942,3.2426,154.22,154.19,10.4384]
[1729135111240,3.2426,154.22,154.2,3.2429]
[1729135111543,7.9025,154.23,154.19,10.4384]
[1729135111943,7.9025,154.23,154.2,3.2428]
[1729135116947,3.242,154.25,154.23,3.2423]
[1729135117139,4.66,154.26,154.23,15.51347685]
[1729135117341,4.66,154.26,154.23,12.27117685]
[1729135118344,3.242,154.25,154.23,12.27117685]
[1729135123251,3.242,154.25,154.23,15.51347685]
[1729135126447,7.9018,154.26,154.23,15.51347685]
[1729135130357,4.66,154.26,154.23,12.27117685]
[1729135130548,4.66,154.26,154.25,3.2419]
[1729135132456,134.70471146,154.28,154.25,3.2419]
[1729135133456,130.04471146,154.28,154.25,3.2419]
[1729135133754,134.70471146,154.28,154.25,3.2419]
[1729135135359,70.04,154.33,154.24,10.3332]
[1729135135558,3.2412,154.29,154.26,12.2216]
[1729135137161,3.2412,154.29,154.27,3.2414]
[1729135137356,3.2412,154.29,154.27,12.2214]
[1729135139960,3.2412,154.29,154.27,3.2414]
[1729135141060,3.2412,154.29,154.26,8.98]
[1729135141257,3.2412,154.29,154.26,12.2216]
[1729135142557,4.66,154.3,154.27,3.2414]
[1729135143263,3.2411,154.29,154.26,12.2216]
[1729135143463,4.66,154.3,154.27,8.98]
[1729135143961,3.2411,154.29,154.27,12.2213]
[1729135144562,3.2411,154.29,154.27,8.98]
[1729135147657,3.2415,154.28,154.25,4.5776]
[1729135147866,13.64,154.3,154.25,4.5776]
[1729135149367,3.2414,154.28,154.25,4.5776]
[1729135151356,3.2414,154.28,154.25,13.5576]
[1729135154265,3.2414,154.28,154.26,3.2417]
[1729135154471,3.2412,154.29,154.27,8.98]
[1729135154867,4.66,154.3,154.27,8.98]
[1729135155174,4.66,154.31,154.28,12.2212]
[1729135155769,3.2409,154.3,154.28,8.98]
[1729135156270,4.66,154.32,154.28,8.98]
[1729135157365,3.2408,154.31,154.28,12.2213]
[1729135159069,3.2404,154.33,154.29,8.98]
[1729135159270,13.64,154.35,154.26,4.66]
[1729135159465,4.66,154.34,154.26,4.66]
[1729135159671,3.2408,154.31,154.28,12.2213]
[1729135164673,3.2408,154.31,154.28,3.2413]
[1729135164874,3.2408,154.31,154.29,8.98]
[1729135172583,3.2403,154.33,154.3,8.98]
[1729135173685,3.2405,154.32,154.3,8.98]
[1729135175187,3.2405,154.32,154.31,3.17276457]
[1729135176485,3.2405,154.32,154.3,8.98]
[1729135180691,3.2404,154.33,154.3,12.2207]
[1729135181094,4.64,154.36,154.32,8.98]
[1729135181290,3.2402,154.34,154.33,3.20140917]
[1729135183795,3.2402,154.34,154.31,12.2205]
[1729135184495,3.2402,154.34,154.31,15.47465082]
[1729135197198,3.2402,154.34,154.33,8.98]
[1729135204920,4.64,154.36,154.33,8.98]
[1729135205213,1.4541,154.39,154.35,8.98]
[1729135205410,4.64,154.39,154.36,8.98]
[1729135206321,7.879,154.39,154.36,12.2195]
[1729135206513,7.879,154.39,154.36,8.98]
[1729135207416,3.2392,154.38,154.36,8.98]
[1729135209409,4.64,154.39,154.34,8.98]
[1729135209609,4.64,154.39,154.35,3.30515804]
[1729135210015,3.2396,154.37,154.35,3.30515804]
[1729135210205,4.64,154.39,154.35,12.28515804]
[1729135210413,4.64,154.39,154.35,8.98]
[1729135210611,3.2393,154.38,154.36,3.30645431]
[1729135210814,3.2393,154.38,154.35,12.2198]
[1729135211015,3.2393,154.38,154.36,3.22640979]
[1729135211420,3.2395,154.37,154.35,8.98]
[1729135211622,3.2395,154.37,154.36,3.18168856]
[1729135212019,3.2395,154.37,154.35,8.98]
[1729135212621,3.2395,154.37,154.35,12.15650349]
[1729135217520,3.2395,154.37,154.36,8.98]
[1729135218223,3.2395,154.37,154.36,12.21786668]
[1729135219122,3.2393,154.38,154.36,12.21786668]
[1729135224516,4.64,154.41,154.37,8.98]
[1729135225222,3.2388,154.4,154.37,8.98]
[1729135225424,4.64,154.41,154.37,8.98]
[1729135226326,8.98,154.42,154.37,8.98]
[1729135226630,4.64,154.45,154.4,8.98]
[1729135227028,3.2383,154.43,154.4,8.98]
[1729135227631,3.2384,154.42,154.4,8.98]
[1729135229332,3.2382,154.43,154.4,12.2186]
[1729135230030,3.2381,154.43,154.42,8.98]
[1729135230929,3.2381,154.43,154.41,8.98]
[1729135232236,3.2381,154.43,154.42,8.98]
[1729135238139,3.2381,154.43,154.41,8.98]
[1729135238635,3.2381,154.43,154.39,3.2389]
[1729135238840,3.2381,154.43,154.41,8.98]
[1729135239640,3.2384,154.42,154.41,8.98]
[1729135242842,3.2384,154.42,154.39,3.2389]
[1729135243043,3.2384,154.42,154.4,8.98]
[1729135243248,3.2384,154.42,154.37,7.3109]
[1729135243249,3.2389,154.4,154.37,5.9101]
[1729135243446,3.2389,154.4,154.37,14.8901]
[1729135246041,13.62,154.45,154.39,8.98]
[1729135246249,3.2387,154.41,154.39,8.98]
[1729135247147,3.2383,154.43,154.4,3.2387]
[1729135247453,4.64,154.44,154.41,8.98]
[1729135248043,3.2383,154.43,154.41,8.98]
[1729135250654,3.2383,154.43,154.41,12.2186]
[1729135251053,3.2383,154.43,154.42,8.98]
[1729135252548,3.2378,154.45,154.42,8.98]
[1729135252751,3.2378,154.45,154.43,8.98]
[1729135254052,3.2378,154.45,154.44,8.98]
[1729135254258,7.8775,154.46,154.44,8.98]
[1729135254558,7.8775,154.46,154.44,12.14493569]
[1729135257159,3.2377,154.45,154.44,12.14493569]
[1729135258256,3.2377,154.45,154.44,3.16493569]
[1729135258556,3.2377,154.45,154.43,8.98]
[1729135258957,3.2377,154.45,154.44,3.22906353]
[1729135260454,8.98,154.48,154.44,3.22906353]
[1729135260662,3.2376,154.46,154.44,3.22906353]
[1729135261150,7.8774,154.47,154.44,8.98]
[1729135261355,7.8774,154.47,154.45,3.16493569]
[1729135262763,3.2375,154.46,154.45,3.16493569]
[1729135263062,4.64,154.48,154.45,12.2176]
[1729135263259,4.64,154.48,154.47,8.98]
[1729135264360,6.4684,154.62,154.47,8.98]
[1729135264559,8.98,154.57,154.51,8.98]
[1729135264759,4.64,154.56,154.51,8.98]
[1729135264956,3.236,154.54,154.51,8.98]
[1729135267671,3.2362,154.53,154.5,8.98]
[1729135267877,8.98,154.56,154.51,8.98]
[1729135268078,4.64,154.55,154.51,8.98]
[1729135268474,3.2359,154.54,154.51,8.98]
[1729135268674,4.64,154.55,154.51,8.98]
[1729135269677,3.2362,154.53,154.51,8.98]
[1729135271577,3.2364,154.52,154.49,8.98]
[1729135272369,3.2364,154.52,154.51,8.98]
[1729135272971,4.64,154.55,154.51,8.98]
[1729135273177,3.2361,154.53,154.51,12.2164]
[1729135273376,3.2361,154.53,154.51,8.98]
[1729135277485,3.2361,154.53,154.47,1.3382]
[1729135277486,8.98,154.53,154.47,1.3382]
[1729135277776,8.98,154.53,154.48,8.98]
[1729135278082,4.64,154.56,154.48,8.98]
[1729135278279,8.98,154.53,154.48,8.98]
[1729135279381,3.2365,154.51,154.48,12.217]
[1729135281585,3.2367,154.5,154.48,8.98]
[1729135281786,8.98,154.49,154.36,3.23786668]
[1729135281981,8.98,154.49,154.37,10.41046442]
[1729135282179,8.98,154.49,154.44,8.98]
[1729135282379,8.98,154.49,154.45,3.28487708]
[1729135283179,3.2374,154.47,154.45,3.28487708]
[1729135284483,3.2375,154.46,154.45,3.28487708]
[1729135285281,4.64,154.51,154.44,12.2178]
[1729135285474,3.2374,154.47,154.44,12.2178]
[1729135285679,3.2374,154.47,154.45,8.98]
[1729135285881,3.2374,154.47,154.45,12.15120787]
[1729135286287,3.2371,154.49,154.46,8.98]
[1729135286787,3.2371,154.49,154.46,12.2174]
[1729135286985,3.2371,154.49,154.47,3.31953438]
[1729135287783,3.2371,154.49,154.46,12.2174]
[1729135288188,13.62,154.51,154.46,3.17509415]
[1729135288483,13.62,154.51,154.46,8.98]
[1729135288688,13.62,154.51,154.46,12.14473814]
[1729135289389,3.237,154.49,154.46,15.38213814]
[1729135290095,3.2367,154.5,154.47,3.2373]
[1729135290282,4.66,154.51,154.47,3.2373]
[1729135290686,3.2367,154.5,154.47,3.2373]
[1729135291896,3.2367,154.5,154.47,12.2173]
[1729135292082,3.2367,154.5,154.47,8.98]
[1729135292993,3.2364,154.52,154.49,8.98]
[1729135293196,69.92,154.56,154.5,8.98]
[1729135293197,4.66,154.54,154.5,8.98]
[1729135293395,69.92,154.56,154.5,8.98]
[1729135293396,78.9,154.56,154.5,8.98]
[1729135293691,4.66,154.54,154.5,8.98]
[1729135294092,4.66,154.54,154.5,12.2167]
[1729135294398,4.66,154.54,154.5,8.98]
[1729135294696,3.2362,154.53,154.5,8.98]
[1729135295193,4.66,154.54,154.49,8.98]
[1729135295400,3.2366,154.51,154.49,8.98]
[1729135299705,3.2366,154.51,154.5,8.98]
[1729135300098,4.66,154.56,154.51,3.2365]
[1729135300309,4.66,154.57,154.48,2.7022]
[1729135300602,3.2358,154.55,154.52,8.98]
[1729135303503,3.2363,154.52,154.49,3.2368]
[1729135303807,8.98,154.55,154.5,8.98]
[1729135304402,3.2361,154.53,154.5,8.98]
[1729135305003,3.2359,154.54,154.51,8.98]
[1729135306910,3.2359,154.54,154.51,12.2164]
[1729135308407,4.66,154.56,154.51,8.98]
[1729135308715,3.2362,154.53,154.51,8.98]
[1729135309010,13.64,154.56,154.5,8.98]
[1729135309210,8.98,154.54,154.5,8.98]
[1729135309509,8.98,154.55,154.5,8.98]
[1729135309707,3.2362,154.53,154.5,8.98]
[1729135310303,8.98,154.55,154.5,8.98]
[1729135310507,3.2363,154.52,154.5,8.98]
[1729135312710,3.2363,154.52,154.51,8.98]
[1729135313906,8.98,154.55,154.48,2.7022]
[1729135314105,3.2366,154.51,154.5,8.98]
[1729135315120,3.2364,154.52,154.5,8.98]
[1729135316821,3.2364,154.52,154.51,8.98]
[1729135317814,3.2365,154.51,154.5,8.98]
[1729135324522,3.2363,154.52,154.5,8.98]
[1729135324722,3.2363,154.52,154.49,3.2368]
[1729135324920,3.2363,154.52,154.51,8.98]
[1729135332524,1.4564,154.58,154.51,8.98]
[1729135332726,4.7,154.57,154.53,8.98]
[1729135333126,3.2356,154.56,154.55,8.98]
[1729135333925,3.2356,154.56,154.55,12.15086058]
[1729135335022,3.2356,154.56,154.55,3.17086058]
[1729135335333,3.2356,154.55,154.54,8.98]
[1729135340552,3.2359,154.54,154.51,3.2364]
[1729135340744,3.2359,154.54,154.51,12.2164]
[1729135342248,3.2359,154.54,154.52,8.98]
[1729135343540,3.2357,154.55,154.52,12.2162]
[1729135343744,3.2357,154.55,154.54,8.98]
[1729135344545,3.2359,154.54,154.51,3.2363]
[1729135344848,3.2359,154.54,154.53,8.98]
[1729135346244,3.2359,154.54,154.52,8.98]
[1729135347253,3.2359,154.54,154.52,12.2162]
[1729135347748,4.7,154.57,154.53,12.2159]
[1729135348146,3.2356,154.56,154.53,12.2159]
[1729135348650,4.7,154.57,154.48,2.7022]
[1729135348651,7.9353,154.57,154.55,8.98]
[1729135348849,4.7,154.57,154.55,12.16931566]
[1729135349850,4.7,154.57,154.55,3.18931566]
[1729135350054,13.68,154.57,154.52,8.98]
[1729135350960,3.2358,154.55,154.51,3.2363]
[1729135351149,3.2358,154.55,154.52,8.98]
[1729135352252,13.68,154.57,154.52,8.98]
[1729135353055,3.2358,154.54,154.52,8.98]
[1729135355455,3.2358,154.54,154.52,12.2162]
[1729135357855,13.68,154.57,154.5,3.2366]
[1729135358154,13.68,154.57,154.52,8.98]
[1729135358550,3.2361,154.53,154.52,8.98]
[1729135358965,8.98,154.55,154.48,2.7022]
[1729135359259,8.98,154.55,154.5,8.98]
[1729135359955,3.2364,154.52,154.5,8.98]
[1729135360254,3.2364,154.52,154.51,8.98]
[1729135367060,7.8762,154.53,154.51,8.98]
[1729135368365,4.64,154.56,154.52,8.98]
[1729135368557,4.64,154.56,154.53,8.98]
[1729135368764,7.8756,154.56,154.53,12.2159]
[1729135369269,4.64,154.56,154.53,8.98]
[1729135370466,3.2357,154.55,154.53,8.98]
[1729135375374,4.64,154.56,154.53,8.98]
[1729135375569,3.2358,154.54,154.53,8.98]
[1729135378374,3.2359,154.54,154.51,3.2364]
[1729135378567,3.2359,154.54,154.53,8.98]
[1729135380675,4.64,154.56,154.53,8.98]
[1729135380875,4.64,154.56,154.54,8.98]
[1729135381973,3.2356,154.55,154.54,8.98]
[1729135382667,3.2356,154.55,154.53,8.98]
[1729135385078,3.2358,154.54,154.53,8.98]
[1729135385678,4.64,154.56,154.48,2.7022]
[1729135385978,3.236,154.54,154.52,8.98]
[1729135386376,3.2361,154.53,154.52,8.98]
[1729135390878,3.2361,154.53,154.51,3.2364]
[1729135391077,3.2361,154.53,154.52,8.98]
[1729135396575,3.2361,154.53,154.52,10.59885109]
[1729135396787,4.64,154.56,154.52,10.59885109]
[1729135396987,3.2359,154.54,154.52,8.98]
[1729135400494,3.2359,154.54,154.53,8.98]
[1729135407592,3.2357,154.55,154.53,8.98]
[1729135413999,3.2358,154.54,154.51,12.2164]
[1729135414601,8.98,154.57,154.51,8.98]
[1729135414602,3.2362,154.53,154.51,8.98]
[1729135416797,8.98,154.55,154.48,2.7022]
[1729135416997,3.2368,154.5,154.48,5.9393]
[1729135417198,3.2368,154.5,154.49,8.98]
[1729135417497,3.2368,154.5,154.47,7.84350194]
[1729135417697,3.2368,154.5,154.48,8.98]
[1729135418102,3.2371,154.48,154.47,3.16950194]
[1729135418304,3.2371,154.48,154.46,8.98]
[1729135418606,3.2371,154.48,154.46,12.28054344]
[1729135419306,3.2373,154.47,154.46,3.30054344]
[1729135419498,3.2373,154.47,154.45,12.2177]
[1729135420005,3.2373,154.47,154.45,15.3897055]
[1729135420707,8.98,154.49,154.45,3.1720055]
[1729135420906,3.2375,154.46,154.45,3.1720055]
[1729135421101,13.62,154.48,154.43,8.98]
[1729135421301,3.2378,154.45,154.43,8.98]
[1729135422202,3.2378,154.45,154.42,13.612]
[1729135423709,3.2378,154.45,154.42,4.632]
[1729135423910,3.2378,154.45,154.43,8.98]
[1729135426209,3.2378,154.45,154.44,8.98]
[1729135428413,3.2378,154.45,154.42,4.632]
[1729135428615,3.2378,154.45,154.43,8.98]
[1729135430112,3.2379,154.44,154.43,8.98]
[1729135431116,3.2383,154.43,154.4,3.2386]
[1729135431312,8.98,154.45,154.4,8.98]
[1729135432212,8.98,154.45,154.4,12.2188]
[1729135432915,3.2383,154.43,154.4,12.2188]
[1729135433309,13.62,154.44,154.38,3.2391]
[1729135433511,3.2387,154.41,154.38,12.2191]
[1729135434218,3.2387,154.41,154.38,15.40082403]
[1729135434517,3.239,154.39,154.38,3.18172403]
[1729135434712,3.239,154.39,154.36,13.5844]
[1729135435021,3.239,154.39,154.37,8.98]
[1729135435217,4.64,154.44,154.37,8.98]
[1729135435520,3.2387,154.41,154.38,12.2191]
[1729135437113,8.98,154.44,154.39,8.98]
[1729135437316,4.64,154.43,154.36,4.54273637]
[1729135437612,3.2384,154.42,154.39,12.2188]
[1729135437815,3.2384,154.42,154.39,8.98]
[1729135439423,3.2384,154.42,154.4,3.2388]
[1729135439626,4.64,154.43,154.4,3.2388]
[1729135439817,7.8783,154.43,154.4,3.2388]
[1729135444124,4.64,154.43,154.41,3.2385]
[1729135446719,7.8782,154.43,154.41,3.2385]
[1729135447623,4.64,154.43,154.41,3.2385]
[1729135449825,4.64,154.46,154.42,8.98]
[1729135450025,10.2997,154.49,154.44,8.98]
[1729135450228,4.64,154.48,154.44,12.19069447]
[1729135450431,3.2375,154.47,154.44,15.42839447]
[1729135450634,4.64,154.49,154.45,8.98]
[1729135451332,3.2374,154.47,154.46,3.28130902]
[1729135454127,3.2371,154.48,154.45,12.2177]
[1729135454534,3.2371,154.48,154.45,15.41328717]
[1729135455942,3.2371,154.48,154.46,8.98]
[1729135461342,3.237,154.49,154.46,12.2175]
[1729135461842,131.25711477,154.5,154.46,8.98]
[1729135462050,134.49401477,154.5,154.47,3.2373]
[1729135462346,134.49401477,154.5,154.47,12.2173]
[1729135467650,3.2369,154.49,154.47,12.2173]
[1729135470857,3.2369,154.49,154.47,8.98]
[1729135471658,131.25711477,154.5,154.47,8.98]
[1729135471852,3.2369,154.49,154.47,12.2172]
[1729135472953,3.2362,154.53,154.5,3.2366]
[1729135473163,3.2362,154.53,154.51,8.98]
[1729135474058,3.2362,154.53,154.52,3.23479861]
[1729135476754,7.8759,154.54,154.52,3.23479861]
[1729135480158,3.2359,154.54,154.52,3.23479861]
[1729135480861,3.2361,154.53,154.52,3.23479861]
[1729135501378,3.2368,154.5,154.48,1.3957]
[1729135501578,3.2368,154.5,154.49,8.98]
[1729135502377,3.2368,154.5,154.49,12.27892457]
[1729135506381,3.2373,154.48,154.45,3.2377]
[1729135506585,4.62,154.51,154.45,8.98]
[1729135506782,8.98,154.5,154.45,8.98]
[1729135506982,8.98,154.5,154.45,12.24719189]
[1729135507183,8.98,154.49,154.45,3.26719189]
[1729135507387,3.2375,154.46,154.45,3.26719189]
[1729135508296,8.98,154.46,154.4,1.359]
[1729135508589,8.98,154.44,154.4,1.359]
[1729135508792,3.2386,154.41,154.4,1.359]
[1729135515096,13.6,154.43,154.37,1.4361]
[1729135515287,3.2388,154.4,154.37,13.6555]
[1729135515882,3.239,154.39,154.34,3.24]
[1729135516088,8.98,154.4,154.33,8.98]
[1729135516289,8.98,154.38,154.32,4.1601]